Cogmind - Beta 15 @@@ ROGUE MODE // 2025.05.30 @ 13:05:03 Player: f3-rnm Result: Self-destructed Performance ------------- Evolutions (0) 0 Regions Visited (3) 600 Robots Destroyed (8) 40 Value Destroyed (179) 179 Prototype IDs (0) 0 Alien Tech Used (0) 0 Bonus (-39) -39 TOTAL SCORE: 780 Bonus ------- Friendly Fire -39 Cogmind --------- Core Integrity 53/250 Matter 200/300 Energy 65/250 System Corruption 2% Temperature Cool (0) Movement Core (1450) Ox28 Location -9/Recycling Parts ------- > --- POWER (1) -------- Ion Engine > --- PROPULSION (2) --- (None) > --- UTILITY (2) ------ Huge Storage Unit Machine Analyzer > --- WEAPON (2) ------- (None) > --- INVENTORY (25) --- VTOL Module VTOL Module Small Storage Unit Humpback Gun Armor EM Pulse Gun SUBCON Basin (Full) Peak State ------------ > --- POWER ------------ Light Ion Engine > --- PROPULSION ------- Light Treads Light Treads > --- UTILITY ---------- Huge Storage Unit Machine Analyzer > --- WEAPON ----------- Light Cannon Subdweller Shrapnel Launcher > --- INVENTORY -------- Ion Engine VTOL Module VTOL Module VTOL Module Small Storage Unit Humpback Gun Armor EM Pulse Gun SUBCON Basin [Rating: 30] Favorites ----------- Power Light Ion Engine Engine Light Ion Engine Propulsion Light Treads Treads Light Treads Flight Unit VTOL Module Utility Machine Analyzer Storage Huge Storage Unit Processor Machine Analyzer Weapon Light Cannon Energy Gun EM Pulse Gun Ballistic Gun Light Assault Rifle Ballistic Cannon Light Cannon Launcher Subdweller Shrapnel Launcher Build | -11 -10 -10 -9 ------- Run | Yrd Mat Sub Rec Slots Evolved . | . . . . Power . | . . . . Propulsion . | . . . . Utility . | . . . . Weapon . | . . . . Parts Attached 15 | 6 2 6 1 Power 2 | 1 . . 1 Engine 2 | 1 . . 1 Core . | . . . . Reactor . | . . . . Propulsion 4 | 2 2 . . Treads 2 | 2 . . . Leg . | . . . . Wheel . | . . . . Hover . | . . . . Flight 2 | . 2 . . Utility 3 | 1 . 2 . Device . | . . . . Storage 2 | 1 . 1 . Processor 1 | . . 1 . Hackware . | . . . . Protection . | . . . . Artifact . | . . . . Weapon 6 | 2 . 4 . Energy Gun 1 | . . 1 . Energy Cannon . | . . . . Ballistic Gun 2 | 2 . . . Ballistic Cannon 2 | . . 2 . Launcher 1 | . . 1 . Special Weapon . | . . . . Impact Weapon . | . . . . Slashing Weapon . | . . . . Piercing Weapon . | . . . . Special Melee Weapon . | . . . . Unidentified Prototypes . | . . . . Parts Lost 7 | . . 1 6 Power 1 | . . . 1 Propulsion 3 | . . . 3 Utility . | . . . . Weapon 3 | . . 1 2 Highest Loss Streak 6 | . . 1 6 To Critical Strikes . | . . . . Average Backups 7 | 1 6 7 8 Power . | . 1 1 1 Propulsion 2 | . 2 3 3 Utility 1 | . . 2 3 Weapon 1 | . 2 1 1 Tool/Special . | . . . . Unused Backups 6 | . 3 . 3 Power . | . . . . Propulsion 4 | . 3 . 1 Utility 2 | . . . 2 Weapon . | . . . . Tool/Special . | . . . . Average Slot Usage (%) 90 | . 63 94 100 Engine 14 | . 14 14 14 Treads 23 | . 8 26 28 Flight 4 | . 18 1 . Storage 14 | . 14 14 14 Processor 9 | . . 11 14 Energy Gun 4 | . . 5 . Ballistic Gun 1 | . 8 . . Ballistic Cannon 16 | . . 19 14 Peak Build Rating 30 | 6 7 30 30 Average Rating 12 | 4 5 13 29 On Entrance 10 | . 6 6 30 Naked Turns . | . . . . Heaviest Build 94 | 11 11 94 94 Greatest Support 40 | 40 40 40 40 Greatest Overweight (x) 2 | . 2 2 2 Average Overweight (x) . | . . 1 2 Largest Inventory Capacity 25 | 8 8 25 25 Average Capacity 18 | 7 8 21 25 Most Carried 25 | 4 8 24 25 Average Carried 9 | 2 6 10 23 Final Capacity 25 | 8 8 25 25 Final Carried 24 | 4 8 24 22 Class Distribution -------------------- 84% | Mutant 15% | Sprinter Dominant Class ---------------- Sprinter | -10/Materials Mutant | -10/Subcaves Mutant | -9/Recycling Resources | -11 -10 -10 -9 ----------- Run | Yrd Mat Sub Rec Matter Collected 544 | 199 . 345 . Remotely . | . . . . Salvage Created 106 | . . 70 36 Parts 13 | . . 7 6 Haulers Intercepted . | . . . . Recyclers Shooed . | . . . . Parts Field Recycled . | . . . . Retrieved Matter . | . . . . Parts Self-Destructed 14 | . . 14 . Prevented . | . . . . Kills | -11 -10 -10 -9 ------- Run | Yrd Mat Sub Rec Combat Hostiles Destroyed 6 | . . 5 1 Cannons 4 | . . 4 . AOE 2 | . . 1 1 Classes Destroyed 6 | . . 4 2 Builder 1 | . . . 1 Turret 1 | . . 1 . Swarmer 3 | . . 3 . Grunt 1 | . . . 1 Artisan 1 | . . 1 . Subdweller 2 | . . 2 . Best Kill Streak 3 | . . 3 2 Combat Bots Only 3 | . . 3 1 Max Kills in Single Turn 2 | . . 1 2 Gunslinging . | . . . . Exploded 1 | . . 1 1 Melee . | . . . . Uniques/NPCs Destroyed . | . . . . Combat | -11 -10 -10 -9 -------- Run | Yrd Mat Sub Rec Hostile Shots Fired 95 | . 14 58 23 Missed 47 | . 10 29 8 Hits 48 | . 4 29 15 Projectile 48 | . 4 29 15 AOE 5 | . . . 5 Critical Strikes 1 | . . . 1 Part Disruptions 1 | . . . 1 Damage Taken 828 | . 47 396 385 Core 197 | . 36 114 47 Absorbed by Shields . | . . . . Core Remaining (%) 100 | 100 . . . Volleys Fired 29 | 1 . 25 3 Largest 2 | 2 . 2 1 Hottest 70 | 40 . 70 40 Shots Fired 52 | 2 . 47 3 Gun 4 | 2 . 2 . Cannon 46 | . . 44 2 Launcher 2 | . . 1 1 Special . | . . . . Kinetic 50 | 2 . 45 3 Thermal . | . . . . Explosive . | . . . . Electromagnetic 2 | . . 2 . Robot Hit Streak 13 | 2 . 13 . Robot Miss Streak 4 | . . 4 1 Penetration Max . | . . . . Secondary Targets . | . . . . Shots Hit Robots 27 | 2 . 25 . Core Hits 11 | 1 . 9 1 Critical Kills . | . . . . Critical Parts Destroyed . | . . . . Critical Strikes . | . . . . Melee Attacks . | . . . . Impact . | . . . . Slashing . | . . . . Piercing . | . . . . Sneak Attacks . | . . . . Combat Hostiles . | . . . . Follow-up Attacks . | . . . . Damage Inflicted 799 | 22 . 630 147 Guns 37 | 22 . 15 . Cannons 468 | . . 468 . Explosions 294 | . . 147 147 Melee . | . . . . Ramming . | . . . . Kinetic 784 | 22 . 615 147 Thermal . | . . . . Explosive . | . . . . Electromagnetic 15 | . . 15 . Impact . | . . . . Slashing . | . . . . Piercing . | . . . . Highest Corruption 2 | . . . 2 Average Corruption 1 | . . . 1 Corruption Purged . | . . . . Corruption Blocked . | . . . . Overload Shots . | . . . . Overflow Damage 88 | . . 56 32 Projectiles 6 | . . 6 . Explosions 82 | . . 50 32 Melee . | . . . . Knockbacks 2 | . . 2 . Impact . | . . . . Kinetic 2 | . . 2 . Secondary . | . . . . Self-Inflicted Damage 48 | . . . 48 Shots 1 | . . . 1 Rammed . | . . . . Targets Rammed . | . . . . Kicked . | . . . . Crushed . | . . . . Highest Temperature . | . . . . Average Temperature . | . . . . Received Heat Transfer 192 | . 27 165 . Siege Activations . | . . . . Martial Activations . | . . . . Shielding Activations . | . . . . Robots Disrupted . | . . . . Combat Hostiles . | . . . . Robots Corrupted . | . . . . Combat Hostiles . | . . . . Parts Fried . | . . . . Impact Corruptions . | . . . . Robots Melted . | . . . . Combat Hostiles . | . . . . Parts Melted . | . . . . Heat Transferred . | . . . . Parts Sabotaged . | . . . . Parts Stolen . | . . . . Parts Stripped . | . . . . Power Chain Reactions . | . . . . Alert | -11 -10 -10 -9 ------- Run | Yrd Mat Sub Rec Maximum Alert Level . | . . . . Low Security (%) 100 | 100 100 . 100 Level 1 . | . . . . Level 2 . | . . . . Level 3 . | . . . . Level 4 . | . . . . Level 5 . | . . . . High Security . | . . . . Max Security . | . . . . Peak Influence 86 | . 86 . 25 Initial 14 | . . . 14 Average 22 | . 33 . 15 Influence Increases 382 | . 126 215 41 Destroy 0b10 Robot/C 100 | . . 80 20 Destroy 0b10 Robot/NC 5 | . . . 5 Successful Hack 6 | . 6 . . Destroy Structure 16 | . . . 16 Lose Combat Pursuer 255 | . 120 135 . Influence Decreases 382 | . 60 250 72 Entered New Map 50 | . . 33 17 Time Decay 267 | . 50 207 10 Lost Part 55 | . . 10 45 Lost Ally 10 | . 10 . . Squads Dispatched . | . . . . Investigation . | . . . . Extermination . | . . . . Reinforcement . | . . . . Assault . | . . . . Garrison . | . . . . Intercept . | . . . . Searches Triggered . | . . . . Construction Impeded . | . . . . Haulers Reinforced . | . . . . Active Scanning Responses . | . . . . Cargo Convoy Interrupts . | . . . . Stealth | -11 -10 -10 -9 --------- Run | Yrd Mat Sub Rec Distress Signals . | . . . . Communications Jammed . | . . . . Distress Signals . | . . . . Times Spotted 29 | . 11 12 6 Peak Tracking Total 6 | . 6 3 6 Tactical Retreats 8 | . 2 6 . Traps | -11 -10 -10 -9 ------- Run | Yrd Mat Sub Rec Traps Triggered . | . . . . Indirectly . | . . . . Trap Hack Attempts . | . . . . Triggered . | . . . . Disarmed . | . . . . Reprogrammed . | . . . . Reused . | . . . . Traps Extracted . | . . . . Installed . | . . . . Triggered . | . . . . Machines | -11 -10 -10 -9 ---------- Run | Yrd Mat Sub Rec Machines Disabled 4 | . . 4 . Max in Single Turn 2 | . . 2 . Machines Repaired . | . . . . Machines Dismantled . | . . . . Machines Sabotaged . | . . . . Overloaded Fab Kills . | . . . . Hacking | -11 -10 -10 -9 --------- Run | Yrd Mat Sub Rec Machines Accessed 3 | . 1 2 . Terminals 1 | . 1 . . Fabricators . | . . . . Repair Stations . | . . . . Recycling Units . | . . . . Scanalyzers . | . . . . Garrison Access . | . . . . Total Hacks 3 | . 1 2 . Successful 3 | . 1 2 . Failed . | . . . . Catastrophic . | . . . . Database Lockouts . | . . . . Manual 1 | . 1 . . Terminals 1 | . 1 . . Fabricators . | . . . . Repair Stations . | . . . . Recycling Units . | . . . . Scanalyzers . | . . . . Garrison Access . | . . . . Terminal Hacks 2 | . . 2 . Open Door 1 | . . 1 . Release Object 1 | . . 1 . Fabricator Hacks . | . . . . Repair Station Hacks . | . . . . Recycling Unit Hacks . | . . . . Scanalyzer . | . . . . Garrison Access Hacks . | . . . . Unauthorized Hacks 1 | . 1 . . Terminals 1 | . 1 . . Assimilate 1 | . 1 . . Fabricators . | . . . . Repair Stations . | . . . . Recycling Units . | . . . . Scanalyzers . | . . . . Garrison Access . | . . . . Data Cores Recovered . | . . . . Used . | . . . . Hacking Detections . | . . . . Full Trace Events . | . . . . Feedback Events . | . . . . Feedback Blocked . | . . . . Robot Schematics Acquired . | . . . . Robots Built . | . . . . Authchips . | . . . . Time . | . . . . Total Robot Build Rating . | . . . . Part Schematics Acquired . | . . . . Parts Built . | . . . . Authchips . | . . . . Time . | . . . . Total Part Build Rating . | . . . . Parts Repaired . | . . . . Time . | . . . . Parts Recycled . | . . . . Recycled Matter . | . . . . Retrieved Matter . | . . . . Retrieved Components . | . . . . Parts Scanalyzed . | . . . . Part Schematics Acquired . | . . . . Parts Damaged . | . . . . Bothacking | -11 -10 -10 -9 ------------ Run | Yrd Mat Sub Rec Used RIF Installer . | . . . . Robots Hacked . | . . . . Non-combat . | . . . . Combat . | . . . . Robot Hacks Applied . | . . . . Relay Couplers Released . | . . . . Fabnet Peak Effective % . | . . . . Robots Rewired . | . . . . Allies Hacked . | . . . . Hacks Repelled . | . . . . Allies | -11 -10 -10 -9 -------- Run | Yrd Mat Sub Rec Total Allies 1 | . 1 . . Largest Group 1 | . 1 . . Highest-Rated Group 10 | . 10 . . Highest-Rated Ally 10 | . 10 . . Total Orders . | . . . . Ally Attacks . | . . . . Total Damage . | . . . . Kills . | . . . . Allies Corrupted . | . . . . Allies Melted . | . . . . Intel | -11 -10 -10 -9 ------- Run | Yrd Mat Sub Rec Active Infowar (turns) 933 | . . 907 26 Machine Analysis 933 | . . 907 26 Robot Analysis Total . | . . . . Derelict Logs Recovered . | . . . . Drone Launches . | . . . . Drone Recoveries . | . . . . Exploration | -11 -10 -10 -9 ------------- Run | Yrd Mat Sub Rec Turns Passed 1435 | 85 191 1133 26 Spaces Moved 663 | 46 217 395 5 Core 7 | 3 4 . . Treads 426 | 43 30 348 5 Legs . | . . . . Wheels . | . . . . Hover . | . . . . Flight 230 | . 183 47 . Fastest Speed 32 | 50 32 32 320 Average Speed 179 | 152 52 250 320 Slowest Speed 320 | 160 160 320 320 Overloaded Moves . | . . . . Propulsion Burnouts . | . . . . Robots Hopped 9 | . 9 . . Potential Cave-ins . | . . . . Cave-ins Triggered . | . . . . Exploration Rate (%) 18 | 4 46 19 4 Regions Visited 3 Branch Regions 2 Pre-discovered Areas . | . . . . Known Exits Taken . | . . . . Unknown Exits Taken 3 | 1 1 1 . Scrap Searched 3 | . . 3 . Spaces Dug . | . . . . Terrain Destroyed 27 | . . 11 16 Melee . | . . . . Projectile . | . . . . AOE 27 | . . 11 16 Terrain Rammed . | . . . . Walls Destroyed . | . . . . Machines Disabled . | . . . . Actions | -11 -10 -10 -9 --------- Run | Yrd Mat Sub Rec Total 842 | 56 287 487 12 Wait 117 | . 66 51 . Move 643 | 45 199 394 5 Hop 8 | . 8 . . Pick Up 12 | 4 4 4 . Fast Attach 10 | 6 2 2 . Attach 5 | . . 2 3 Detach 5 | . 4 . 1 Swap 8 | . . 8 . Drop 5 | . 4 1 . Fire 29 | 1 . 25 3 Melee . | . . . . Ram . | . . . . Kick . | . . . . Crush . | . . . . Escape Stasis . | . . . . Rewire . | . . . . Trap . | . . . . Miscellaneous . | . . . . Route ------- -11/Scrapyard -10/Materials (discovered 5 exits: [*Mat x2] / [*Min x2] / *Sub) -10/Subcaves -9/Recycling History --------- Turn | Location | Event 4 | -11/Scrapyard | Discovered new exit (range 15) 86 | -11/Scrapyard | Entered Materials 164 | -10/Materials | Discovered new exit (range 14) 172 | -10/Materials | Discovered new exit (range 9) 176 | -10/Materials | Discovered new exit (range 11) 239 | -10/Materials | Discovered new exit (range 16) 265 | -10/Materials | Discovered new exit (range 4) 277 | -10/Materials | Entered Subcaves 278 | -10/Subcaves | Approached by a straggling Scientist 379 | -10/Subcaves | Visited 4L-MR0's lab 404 | -10/Subcaves | Found Prototype Protection 640 | -10/Subcaves | Build established: Mutant 677 | -10/Subcaves | Ambushed by Subdweller buried in earth 907 | -10/Subcaves | Core integrity fell below 50% 947 | -10/Subcaves | Discovered new exit (range 11) 1254 | -10/Subcaves | Found SUBCON Basin 1410 | -10/Subcaves | Entered Recycling 1436 | -9/Recycling | Self-destructed Last Messages --------------- LOCATION=UNKNOWN GOAL=ESCAPE 01427_ H-55 Commando springs to life. 01427_ Penetrated by Slug. 01427_ K-01 Serf destroyed. 01430_ Destroyed Heat Sink. 01430_ G-34 Mercenary destroyed. 01430_ U-05 Engineer destroyed. 01430_ Lgt. Treads destroyed. 01430_ Destroyed Lgt. Treads. 01430_ Lgt. Ion Engine destroyed. 01430_ Destroyed Lgt. Ion Engine. 01430_ Destroyed Gravmag System. 01431_ P-60 Hacker springs to life. 01431_ D-53 Grenadier springs to life. 01431_ P-60 Hacker springs to life. 01434_ Lgt. Treads destroyed. 01435_ Sub. Shrapnel Launcher destroyed. 01435_ Lgt. Cannon destroyed. 01436_ VTOL Module destroyed. Map ----- +----------------------------------------------------+ | | | | | | | | | | | | | | | | | ?????????????????????????????????????????????????? | | ?????????????????????????????????????????????????? | | ?????????????????????????????????????????????????? | | ?????????????????????????????????????????????????? | | ?????????????????????????????????????????????????? | | ?????????????????????????????????????????????????? | | ?????????????????????????????????????????????????? | | ?????????????????????????????????????????????????? | | ?????????????????????????????????????????????????? | | ?????????????????????????????????????????????????? | | ?????????????????????????????????????????????????? | | ?????????????????????????????????????????????????? | | ??????????????????????#######????????????????????? | | ?????????????????????## # ##???????????????????? | | ?????????????????????# ##??????????????????? | | ????????????????###### #??????????????????? | | ????????????????# ###????????????????? | | ?????????? @ #????????????????? | | ????????????????# #????????????????? | | ????????????????# #????????????????? | | ????????????????# ####????????????????? | | ????????????????## ## % %[dg??????????????????? | | ?????????????????# ??###=!=pYg#?????????????????? | | ?????????????????# ?????# pp%#?????????????????? | | ?????????????????#??????#g Y #?????????????????? | | ????????????????????????# bd #?????????????????? | | ????????????????????????? %= #?????????????????? | | ????????????????????????# = #?????????????????? | | ????????????????????????# s!]h#?????????????????? | | ????????????????????????# / #?????????????????? | | ????????????????????????? r !#?????????????????? | | ????????????????????????? k l!???????????????????? | | ????????????????????????? %[????????????????????? | | ?????????????????????????????????????????????????? | | ?????????????????????????????????????????????????? | | ?????????????????????????????????????????????????? | | ?????????????????????????????????????????????????? | | ?????????????????????????????????????????????????? | | ?????????????????????????????????????????????????? | | ?????????????????????????????????????????????????? | | ?????????????????????????????????????????????????? | | ?????????????????????????????????????????????????? | +----------------------------------------------------+ Best States ------------- Heat Dissipation 25 Energy Generation 10 Energy Capacity 125 Matter Stores 300 Matter Capacity 300 Sight Range 16 Terrain Scan Density 10 Evasion (%) 63 Recoil Reduction 2 Item Schematics ----------------- None Robot Schematics ------------------ None Fabricated ------------ Nothing Repaired ---------- Nothing Alien Tech Used ----------------- None Achievements -------------- None Challenges ------------ None Game ------ Seed ExplosiveEtherialShovel Manual? 1 Play Time 00:06:56 Cumulative 316.6 hours Start 2025.05.30 @ 12:58:49 End 2025.05.30 @ 13:05:03 Sessions 1 Manual Loads 0 Difficulty Rogue Special Mode None Game No. 305 Rogue 269 Adventurer 36 Explorer 0 Win Type - Total 11 Types 4/0/7/0/0/0/0/0/0/0 Lore% 69 Gallery% 81 Achievement% 74 Wizard Run 0 Options --------- Layout 0 ASCII 0 Keyboard 0 Movement Mouse Keybinds 0 Fullscreen 1 Font 18/SmallcapsGlow Map View 76x50 Zoom Use 0% Tactical HUD 1 Map Filters NONE Filters NONE Steam 1 RUN: 52f252f0-5c06-41df-abfe-e255fc667b7b